bitfinex-derivatives/quotes_SOLF0:USTF0_20241105
["timestamp","ask_amount","ask_price","bid_price","bid_amount"]
[1730816497261,2.88,164.35,164.33,2.1305]
[1730816501077,2.1287,164.48,164.41,2.1295]
[1730816501282,3.05848436,164.51,164.41,2.1295]
[1730816501473,11.70844463,164.51,164.4,11.70844463]
[1730816501670,2.88,164.5,164.41,2.1295]
[1730816502576,2.88,164.5,164.37,2.88]
[1730816502784,5.0084,164.5,164.34,4.007]
[1730816502974,11.70844463,164.47,164.37,11.70844463]
[1730816503175,11.70844463,164.43,164.34,4.007]
[1730816503479,3.12,164.42,164.34,15.71544463]
[1730816503675,3.12,164.44,164.34,15.71544463]
[1730816504077,3.12,164.44,164.37,2.13]
[1730816504273,3.12,164.44,164.34,15.71544463]
[1730816504680,3.12,164.44,164.34,13.08304463]
[1730816507289,3.12,164.44,164.38,2.1299]
[1730816507591,3.12,164.44,164.34,13.08304463]
[1730816508291,3.12,164.44,164.39,2.1298]
[1730816509592,3.12,164.44,164.34,13.08304463]
[1730816510503,5.2491,164.44,164.34,13.08304463]
[1730816510793,5.2491,164.44,164.32,1.3411]
[1730816510794,3.12,164.44,164.32,13.04954463]
[1730816510995,2.1297,164.4,164.35,2.1302]
[1730816511190,3.12,164.4,164.32,13.04954463]
[1730816511686,3.12,164.4,164.36,2.1301]
[1730816512189,5.2497,164.4,164.34,2.1304]
[1730816512385,3.12,164.4,164.31,51.01802949]
[1730816513090,2.1298,164.39,164.34,2.1303]
[1730816513292,2.1298,164.39,164.31,51.01802949]
[1730816513989,2.1299,164.39,164.35,2.1302]
[1730816514189,14.82844463,164.4,164.31,51.01802949]
[1730816514590,2.13,164.38,164.34,2.1303]
[1730816514792,2.13,164.38,164.31,51.01802949]
[1730816515090,2.13,164.38,164.33,2.1305]
[1730816515282,2.13,164.38,164.31,51.01802949]
[1730816515891,2.1298,164.39,164.32,11.70844463]
[1730816516193,3.12,164.4,164.32,11.70844463]
[1730816516787,2.1298,164.39,164.35,2.1302]
[1730816517985,5.2498,164.39,164.35,2.1302]
[1730816518394,5.2498,164.39,164.32,11.70844463]
[1730816519191,5.2498,164.39,164.35,2.1302]
[1730816520193,5.2498,164.39,164.32,11.70844463]
[1730816521495,5.2498,164.39,164.35,2.1302]
[1730816521692,11.70844463,164.42,164.32,11.70844463]
[1730816521896,3.12,164.39,164.32,11.70844463]
[1730816522492,5.2498,164.39,164.32,11.70844463]
[1730816522693,3.12,164.39,164.32,11.70844463]
[1730816523092,3.12,164.39,164.36,2.1301]
[1730816523694,3.12,164.39,164.32,11.70844463]
[1730816523892,3.12,164.39,164.37,2.13]
[1730816525099,5.2498,164.39,164.36,2.1302]
[1730816526000,3.12,164.39,164.34,7.48217017]
[1730816526793,3.12,164.39,164.36,2.1301]
[1730816527291,7.48217017,164.38,164.32,7.48217017]
[1730816527797,9.61217017,164.38,164.34,2.1303]
[1730816528294,5.2498,164.39,164.34,7.48217017]
[1730816528600,3.12,164.39,164.34,7.48217017]
[1730816528787,12.73197017,164.39,164.34,2.1303]
[1730816529094,10.60217017,164.39,164.34,7.48217017]
[1730816530095,10.60217017,164.39,164.36,2.1301]
[1730816530297,10.60217017,164.39,164.34,7.48217017]
[1730816530603,10.60217017,164.39,164.33,7.48217017]
[1730816530901,10.60217017,164.39,164.34,2.1303]
[1730816531196,7.48217017,164.38,164.32,7.48217017]
[1730816531502,2.1301,164.37,164.33,2.1304]
[1730816531692,7.48217017,164.38,164.32,7.48217017]
[1730816532192,3.12,164.39,164.3,7.48217017]
[1730816532193,7.48217017,164.36,164.3,7.48217017]
[1730816532394,4.3307756,164.46,164.32,7.48217017]
[1730816532591,7.48217017,164.42,164.35,7.48217017]
[1730816533390,2.1298,164.4,164.35,7.48217017]
[1730816533594,3.22,164.4,164.35,7.48217017]
[1730816533993,5.3497,164.4,164.36,2.1301]
[1730816534196,7.48217017,164.37,164.26,1.3746]
[1730816534395,3.22,164.36,164.3,7.48217017]
[1730816534703,3.22,164.36,164.32,2.1307]
[1730816534891,3.22,164.36,164.31,7.48217017]
[1730816535203,3.22,164.36,164.26,1.3746]
[1730816535204,3.22,164.36,164.33,7.48217017]
[1730816535397,8.75397017,164.4,164.33,7.48217017]
[1730816535600,3.22,164.39,164.3,11.69251638]
[1730816536001,2.13,164.38,164.3,11.69251638]
[1730816536304,3.22,164.39,164.3,11.69251638]
[1730816536500,5.3498,164.39,164.36,2.1302]
[1730816537499,3.22,164.39,164.36,2.1301]
[1730816539407,5.3499,164.39,164.35,2.1303]
[1730816539600,3.22,164.39,164.35,2.1303]
[1730816540306,5.3498,164.39,164.32,11.69251638]
[1730816540701,3.22,164.39,164.32,11.69251638]
[1730816541302,3.22,164.39,164.36,2.1301]
[1730816541502,3.22,164.39,164.32,11.69251638]
[1730816542305,5.3499,164.39,164.35,2.1302]
[1730816542900,3.22,164.39,164.32,11.69251638]
[1730816543099,3.22,164.39,164.37,2.13]
[1730816543404,3.9517,164.45,164.35,11.69251638]
[1730816543405,3.22,164.4,164.35,11.69251638]
[1730816543607,3.22,164.41,164.38,2.1298]
[1730816544006,3.22,164.42,164.38,2.1298]
[1730816544208,2.6799,164.45,164.35,11.69251638]
[1730816544510,3.22,164.44,164.35,11.69251638]
[1730816544713,2.1294,164.43,164.35,11.69251638]
[1730816544905,2.1294,164.43,164.4,2.1295]
[1730816545099,3.22,164.43,164.37,11.69251638]
[1730816546298,11.69251638,164.48,164.37,11.69251638]
[1730816546299,2.129,164.45,164.37,11.69251638]
[1730816546498,2.129,164.45,164.38,1.3418]
[1730816546705,5.349,164.45,164.38,1.3418]
[1730816546909,3.22,164.45,164.42,2.1293]
[1730816547306,11.69251638,164.48,164.42,2.1293]
[1730816547609,3.22,164.47,164.38,1.3418]
[1730816548004,11.69251638,164.48,164.41,2.1295]
[1730816548309,2.1292,164.44,164.41,2.1295]
[1730816549008,3.22,164.47,164.38,1.3418]
[1730816549203,3.22,164.47,164.39,11.69251638]
[1730816549511,2.6626,164.49,164.39,12.99311638]
[1730816549706,2.1288,164.47,164.44,2.129]
[1730816550808,6.35113761,164.65,164.4,1.2943]
[1730816550809,3.22,164.64,164.46,11.69251638]
[1730816551007,3.22,164.64,164.47,1.3006]
[1730816551008,24.6746339,164.61,164.47,1.3006]
[1730816551212,1.3872,164.6,164.48,11.69251638]
[1730816551401,2.1276,164.56,164.48,11.69251638]
[1730816551606,3.22,164.59,164.48,11.69251638]
[1730816551999,2.1276,164.56,164.51,2.1282]
[1730816552201,11.69251638,164.58,164.48,11.69251638]
[1730816552410,1.2616,164.57,164.47,1.3006]
[1730816552714,2.1277,164.55,164.5,2.1282]
[1730816552906,3.22,164.54,164.5,2.1282]
[1730816553107,2.1277,164.55,164.5,2.1282]
[1730816553315,3.22,164.54,164.47,1.3006]
[1730816553514,3.22,164.54,164.48,11.69251638]
[1730816554012,3.22,164.54,164.5,2.1282]
[1730816554212,3.22,164.55,164.48,11.69251638]
[1730816555010,3.22,164.55,164.47,1.3006]
[1730816555413,3.22,164.55,164.49,2.1284]
[1730816556007,2.1279,164.54,164.49,2.1284]
[1730816556405,3.22,164.55,164.49,2.1284]
[1730816556921,3.22,164.54,164.47,2.1287]
[1730816557308,3.22,164.54,164.45,1.299]
[1730816557309,2.1282,164.52,164.45,1.299]
[1730816557509,2.1282,164.52,164.48,2.1286]
[1730816557709,2.1282,164.52,164.45,1.299]
[1730816557906,3.22,164.54,164.45,1.299]
[1730816558111,14.91251638,164.54,164.47,2.1287]
[1730816558314,2.1281,164.52,164.45,1.299]
[1730816558508,3.22,164.52,164.45,1.299]
[1730816558916,3.22,164.52,164.46,11.69251638]
[1730816559704,5.3482,164.52,164.48,7.47836834]
[1730816560118,5.3482,164.52,164.48,9.60686834]
[1730816561107,2.1282,164.52,164.48,9.60686834]
[1730816561607,2.1282,164.52,164.49,2.1285]
[1730816563414,5.388,164.53,164.49,2.1285]
[1730816563814,3.26,164.53,164.48,9.60696834]
[1730816564113,3.26,164.53,164.5,7.47836834]
[1730816564308,3.26,164.53,164.5,9.60666834]
[1730816564507,3.26,164.56,164.51,7.47836834]
[1730816565015,3.26,164.56,164.53,2.1279]
[1730816565227,3.26,164.56,164.51,7.47836834]
[1730816565407,5.3875,164.57,164.51,7.47836834]
[1730816565815,1.2844,164.59,164.53,7.47836834]
[1730816566009,3.26,164.58,164.53,7.47836834]
[1730816566213,10.73836834,164.58,164.52,2.128]
[1730816566428,10.73836834,164.58,164.51,7.47836834]
[1730816566810,7.47836834,164.58,164.51,7.47836834]
[1730816567015,3.26,164.57,164.51,7.47836834]
[1730816567216,2.1276,164.56,164.53,2.128]
[1730816571426,2.1276,164.56,164.53,9.60636834]
[1730816575624,2.1274,164.58,164.54,2.1277]
[1730816575829,7.47836834,164.6,164.54,2.1277]
[1730816576220,2.1275,164.57,164.53,9.60626834]
[1730816577132,7.47836834,164.59,164.53,9.60626834]
[1730816577326,2.1276,164.57,164.53,9.60626834]
[1730816578232,2.1276,164.56,164.53,9.60626834]
[1730816578633,7.47836834,164.59,164.54,2.1278]
[1730816578928,2.1275,164.57,164.54,7.47836834]
[1730816580322,2.1275,164.57,164.54,9.60616834]
[1730816580830,2.1272,164.59,164.55,2.1276]
[1730816581032,7.47836834,164.6,164.55,2.1276]
[1730816581233,7.47836834,164.6,164.54,7.47836834]
[1730816581626,2.1275,164.57,164.54,9.60616834]
[1730816582025,2.1275,164.57,164.54,7.47836834]
[1730816583231,2.1275,164.57,164.54,9.60616834]
[1730816583623,2.1274,164.58,164.54,7.47836834]
[1730816583920,2.1274,164.58,164.55,2.1276]
[1730816585021,2.1275,164.57,164.54,7.47836834]
[1730816585533,2.1275,164.57,164.53,9.60626834]
[1730816586127,2.1276,164.56,164.53,9.60626834]
[1730816586631,2.1277,164.56,164.52,9.60636834]
[1730816587235,2.1277,164.56,164.52,7.47836834]
[1730816587431,2.1277,164.56,164.53,2.128]
[1730816589333,5.3875,164.57,164.54,2.1278]
[1730816589539,3.26,164.57,164.54,7.47836834]
[1730816590239,3.26,164.57,164.56,2.1276]
[1730816591246,2.1271,164.6,164.56,9.60596834]
[1730816591444,3.26,164.59,164.56,9.60596834]
[1730816592140,5.3872,164.59,164.56,9.60596834]
[1730816592539,5.3872,164.59,164.56,2.1276]
[1730816594744,3.26,164.59,164.57,7.47836834]
[1730816595050,3.26,164.59,164.56,2.1276]
[1730816595246,3.26,164.59,164.57,2.1274]
[1730816595560,3.22,164.6,164.57,9.60576834]
[1730816595857,12.98211752,164.61,164.57,7.47836834]
[1730816596055,12.98211752,164.61,164.59,7.47836834]
[1730816596056,16.20211752,164.61,164.59,7.47836834]
[1730816596343,12.98211752,164.61,164.52,1.3696]
[1730816596548,12.98211752,164.61,164.59,7.47836834]
[1730816596741,12.98211752,164.61,164.6,7.47836834]
[1730816597141,12.98211752,164.61,164.59,2.1272]
[1730816597348,12.98211752,164.61,164.6,7.47836834]
[1730816597648,12.98211752,164.61,164.59,7.47836834]
[1730816598248,12.98211752,164.61,164.57,7.47836834]
[1730816598750,2.1271,164.6,164.57,7.47836834]
[1730816598954,16.20211752,164.61,164.59,7.47836834]
[1730816599447,12.98211752,164.61,164.52,1.3696]
[1730816599656,0.72658,164.68,164.6,7.47836834]
[1730816599854,0.72658,164.68,164.65,7.47836834]
[1730816600044,0.72658,164.68,164.61,2.6607]
[1730816600245,0.72658,164.68,164.65,7.47836834]
[1730816600644,8.20494834,164.68,164.63,7.47836834]
[1730816600849,7.47836834,164.66,164.6,50.93136552]
[1730816601045,7.47836834,164.66,164.6,58.40973386]
[1730816601351,3.22,164.67,164.61,7.47836834]
[1730816601740,7.47836834,164.66,164.6,50.93136552]
[1730816602354,11.98786834,164.67,164.61,7.47836834]
[1730816603250,3.22,164.67,164.63,7.47836834]
[1730816603552,3.22,164.67,164.61,9.60516834]
[1730816603748,3.22,164.67,164.63,7.47836834]
[1730816604051,3.94658,164.68,164.63,9.60506834]
[1730816604252,3.94658,164.68,164.63,7.47836834]
[1730816604448,3.94658,164.68,164.63,9.60506834]
[1730816604656,3.94658,164.68,164.61,2.6558]
[1730816604846,3.94658,164.68,164.62,7.47836834]
[1730816604847,11.42494834,164.68,164.62,7.47836834]
[1730816605046,11.42494834,164.68,164.61,2.6558]
[1730816605348,7.47836834,164.67,164.61,7.47836834]
[1730816605541,7.47836834,164.67,164.6,50.93136552]
[1730816605542,7.47836834,164.65,164.6,58.40973386]
[1730816605856,3.94658,164.68,164.61,7.47836834]
[1730816606052,7.47836834,164.66,164.61,7.47836834]
[1730816606254,11.42494834,164.68,164.61,7.47836834]
[1730816606450,11.42494834,164.68,164.63,7.47836834]
[1730816607456,11.42494834,164.68,164.65,2.1264]
[1730816607859,11.42494834,164.68,164.63,7.47836834]
[1730816608049,11.42494834,164.68,164.64,2.1265]
[1730816609146,3.94658,164.68,164.64,7.47836834]
[1730816609357,0.72658,164.68,164.66,2.1262]
[1730816609555,0.72658,164.68,164.64,7.47836834]
[1730816610659,0.72658,164.68,164.66,2.1262]
[1730816610853,0.72658,164.68,164.64,7.47836834]
[1730816611046,7.47836834,164.69,164.64,7.47836834]
[1730816611253,2.1259,164.69,164.64,7.47836834]
[1730816611453,7.47836834,164.69,164.64,7.47836834]
[1730816611653,3.46,164.71,164.62,1.3277]
[1730816611654,7.47836834,164.67,164.62,1.3277]
[1730816611952,7.47836834,164.67,164.63,2.1266]
[1730816612151,7.47836834,164.67,164.62,8.80606834]
[1730816612353,7.47836834,164.69,164.64,2.1265]
[1730816612547,7.47836834,164.7,164.63,7.47836834]
[1730816612958,7.47836834,164.7,164.66,2.1263]
[1730816613160,7.47836834,164.7,164.63,7.47836834]
[1730816613359,9.60446834,164.68,164.63,9.60496834]
[1730816613568,37.66631345,164.8,164.66,7.47836834]
[1730816613757,7.47836834,164.72,164.66,7.47836834]
[1730816614258,7.47836834,164.71,164.66,7.47836834]
[1730816614458,2.1257,164.71,164.68,7.47836834]
[1730816614659,7.47836834,164.73,164.68,7.47836834]
[1730816614865,3.46,164.75,164.69,7.47836834]
[1730816615055,10.93836834,164.75,164.69,7.47836834]
[1730816615249,2.1255,164.73,164.69,7.47836834]
[1730816615455,2.1255,164.73,164.62,1.3277]
[1730816615456,7.47836834,164.73,164.68,7.47836834]
[1730816615754,2.1257,164.71,164.68,7.47836834]
[1730816616156,3.46,164.74,164.68,7.47836834]
[1730816616363,7.47836834,164.73,164.68,7.47836834]
[1730816616859,7.47836834,164.73,164.68,9.60426834]
[1730816617466,9.60386834,164.73,164.69,2.1259]
[1730816617659,2.1255,164.73,164.69,2.1259]
[1730816617972,3.46,164.74,164.63,3.46]
[1730816618257,3.46,164.74,164.69,9.60426834]
[1730816618462,3.46,164.74,164.71,7.47836834]
[1730816618663,5.5853,164.74,164.7,9.60416834]
[1730816618867,3.46,164.74,164.7,7.47836834]
[1730816619270,0.96178,164.77,164.71,7.47836834]
[1730816619667,8.44014834,164.77,164.71,7.47836834]
[1730816619966,0.96178,164.77,164.71,7.47836834]
[1730816620265,0.96178,164.77,164.73,7.47836834]
[1730816621258,0.96178,164.77,164.75,7.47836834]
[1730816621560,0.96178,164.77,164.73,7.47836834]
[1730816621766,0.96178,164.77,164.74,2.1252]
[1730816621961,0.96178,164.77,164.74,7.47836834]
[1730816622161,0.96178,164.77,164.76,7.47836834]
[1730816622365,3.46,164.92,164.8,2.1244]
[1730816622571,3.70239305,164.91,164.77,1.3565]
[1730816622762,8.50536139,164.9,164.84,7.47836834]
[1730816623066,8.50536139,164.9,164.78,1.3752]
[1730816623067,7.47836834,164.88,164.83,7.47836834]
[1730816623268,7.47836834,164.88,164.84,7.47836834]
[1730816623485,7.47836834,164.9,164.82,2.1242]
[1730816623665,3.72,164.89,164.78,1.3752]
[1730816623865,1.2894,164.94,164.84,7.47836834]
[1730816623866,7.47836834,164.9,164.84,7.47836834]
[1730816624067,7.47836834,164.89,164.81,2.1243]
[1730816624262,2.1237,164.86,164.78,1.3752]
[1730816624463,2.1237,164.86,164.81,7.47836834]
[1730816624670,7.47836834,164.87,164.78,1.3752]
[1730816624866,7.47836834,164.87,164.81,7.47836834]
[1730816625167,1.2945,164.9,164.81,7.47836834]
[1730816625473,3.4178,164.9,164.81,11.65132947]
[1730816625668,1.2945,164.9,164.81,13.77562947]
[1730816625974,3.72,164.91,164.81,11.65132947]
[1730816626172,3.72,164.91,164.83,2.1241]
[1730816626475,3.72,164.91,164.81,11.65132947]
[1730816626768,3.72,164.91,164.81,13.77552947]
[1730816627074,3.72,164.91,164.78,5.3552]
[1730816627075,3.72,164.91,164.83,11.65132947]
[1730816627270,3.72,164.91,164.81,11.65132947]
[1730816627866,3.72,164.91,164.81,13.77562947]
[1730816628161,11.65132947,164.9,164.79,11.65132947]
[1730816628566,11.65132947,164.9,164.79,13.77592947]
[1730816628973,2.1239,164.85,164.79,13.77592947]
[1730816629472,11.65132947,164.9,164.79,13.77592947]
[1730816629977,11.65132947,164.87,164.78,1.3752]
[1730816630170,5.2923,164.86,164.78,1.3752]
[1730816630475,7.4161,164.86,164.79,2.1246]
[1730816630669,7.4161,164.86,164.78,1.3752]
[1730816630670,5.2923,164.86,164.78,1.3752]
[1730816630870,5.2923,164.86,164.79,11.65132947]
[1730816631067,2.1238,164.85,164.79,11.65132947]
[1730816631262,3.98,164.86,164.79,11.65132947]
[1730816631975,3.98,164.86,164.81,2.1242]
[1730816632872,3.98,164.86,164.79,11.65132947]
[1730816633071,3.98,164.86,164.78,1.3752]
[1730816633276,3.98,164.86,164.79,11.65132947]
[1730816633776,3.98,164.86,164.8,2.1244]
[1730816633979,3.98,164.86,164.79,11.65132947]
[1730816634781,3.98,164.86,164.81,2.1243]
[1730816635275,12.96362947,164.93,164.83,11.65132947]
[1730816635570,3.98,164.92,164.79,0.7955]
[1730816635775,2.1235,164.88,164.81,2.1243]
[1730816635979,11.65132947,164.91,164.81,2.1243]
[1730816636179,3.98,164.92,164.8,11.65132947]
[1730816636368,1.3123,164.93,164.88,2.1233]
[1730816636568,1.3123,164.93,164.85,11.65132947]
[1730816636785,12.96362947,164.93,164.83,11.65132947]
[1730816637278,1.3123,164.93,164.85,11.65132947]
[1730816637475,5.2923,164.93,164.85,11.65132947]
[1730816637868,5.2923,164.93,164.83,11.65132947]
[1730816638280,0.48039,165.0,164.91,11.65132947]
[1730816638480,0.48039,165.0,164.88,11.65132947]
[1730816638481,0.48039,165.0,164.93,11.65132947]
[1730816638675,0.48039,165.0,164.89,1.3142]
[1730816638872,2.1224,164.97,164.9,11.65132947]
[1730816639175,5.98039,165.0,164.89,1.3142]
[1730816639372,2.1227,164.94,164.88,11.65132947]
[1730816639683,11.65132947,164.98,164.88,11.65132947]
[1730816639979,1.3181,165.04,164.9,11.65132947]
[1730816640173,11.65132947,165.01,164.9,11.65132947]
[1730816640379,2.1221,164.99,164.92,2.1229]
[1730816640585,2.6546,165.03,164.9,11.65132947]
[1730816640785,11.65132947,165.0,164.9,11.65132947]
[1730816640975,2.122,164.99,164.91,2.123]
[1730816641176,2.122,164.99,164.9,11.65132947]
[1730816641486,11.65132947,165.01,164.91,11.65132947]
[1730816641682,11.65132947,165.01,164.91,13.77432947]
[1730816641886,11.65132947,165.01,164.91,11.65132947]
[1730816642784,2.122,165.0,164.93,2.1228]
[1730816642996,11.65132947,165.01,164.93,2.1228]
[1730816643500,2.1221,164.99,164.92,2.1229]
[1730816643996,11.65132947,165.01,164.91,11.65132947]
[1730816644195,11.65132947,164.99,164.88,11.65132947]
[1730816644396,11.65132947,164.97,164.86,13.00892947]
[1730816644700,2.1228,164.93,164.87,2.1236]
[1730816644896,6.18,165.0,164.89,11.65132947]
[1730816645102,6.18,165.0,164.91,11.65132947]
[1730816645993,6.18,165.0,164.93,2.1228]
[1730816646594,2.6546,165.03,164.96,11.65132947]
[1730816647198,2.1217,165.02,164.96,11.65132947]
[1730816647399,2.6546,165.03,164.94,11.65132947]
[1730816647596,2.1222,164.99,164.94,11.65132947]
[1730816647998,11.65132947,165.02,164.94,11.65132947]
[1730816648495,8.8346,165.03,164.94,11.65132947]
[1730816648696,2.1218,165.02,164.95,2.1224]
[1730816648891,2.1218,165.02,164.94,11.65132947]
[1730816649900,11.65132947,165.02,164.9,1.3447]
[1730816650105,2.6546,165.03,164.92,11.65132947]
[1730816650398,2.6546,165.03,164.97,2.1222]
[1730816650601,1.2685,165.03,164.97,13.77352947]
[1730816650996,46.5633,165.08,165.02,2.1216]
[1730816651193,0.7424,165.08,165.01,11.65132947]
[1730816651594,6.18,165.18,164.97,2.6966]
[1730816651797,11.65132947,165.15,165.05,11.65132947]
[1730816652002,2.1204,165.12,165.05,11.65132947]
[1730816652199,11.65132947,165.13,165.04,1.3734]
[1730816652400,4.76779757,165.17,165.04,1.3734]
[1730816652604,4.76779757,165.17,164.98,0.8008]
[1730816652805,11.65132947,165.11,164.98,2.1742]
[1730816652996,4.76779757,165.17,165.0,11.65132947]
[1730816652997,6.18,165.1,165.0,11.65132947]
[1730816653608,2.1218,165.02,164.98,1.3734]
[1730816653801,11.65132947,165.06,164.98,1.3734]
[1730816654201,11.65132947,165.06,164.94,11.65132947]
[1730816654398,1.2692,165.05,164.94,11.65132947]
[1730816654600,11.65132947,165.04,164.94,11.65132947]
[1730816654807,2.1222,164.98,164.92,11.65132947]
[1730816655098,2.1222,164.98,164.9,2.1231]
[1730816655099,6.18,165.03,164.97,11.65132947]
[1730816655297,6.18,165.03,164.92,18.63874274]
[1730816656203,6.18,165.03,164.95,20.76124274]
[1730816656204,8.3016,165.03,164.95,20.76124274]
[1730816656403,6.18,165.03,164.95,18.63874274]
[1730816658007,6.18,165.03,164.98,2.1221]
[1730816658202,6.18,165.03,164.96,2.6999]
[1730816658608,6.18,165.03,164.97,2.1222]
[1730816658798,6.18,165.03,164.97,18.63874274]
[1730816659003,6.18,165.03,164.98,2.1221]
[1730816659199,6.18,165.03,164.97,18.63874274]
[1730816659708,6.18,165.03,164.92,18.63874274]
[1730816660107,4.0482,165.02,164.92,18.63874274]
[1730816660713,2.1219,165.0,164.92,18.63874274]
[1730816660907,1.291,165.02,164.92,18.63874274]
[1730816661310,6.18,165.03,164.95,18.63874274]
[1730816662011,6.18,165.03,164.96,1.319]
[1730816662203,6.18,165.03,164.98,2.1221]
[1730816662804,6.18,165.03,164.96,2.6558]
[1730816663107,6.18,165.03,164.97,18.63874274]
[1730816663308,6.18,165.08,164.97,18.63874274]
[1730816663507,2.1212,165.06,165.0,2.1219]
[1730816663706,19.92974274,165.11,164.97,18.63874274]
[1730816663904,6.18,165.08,164.97,18.63874274]
[1730816664218,1.291,165.11,165.01,18.63874274]
[1730816664517,7.471,165.11,165.01,18.63874274]
[1730816664716,7.471,165.11,164.98,18.63874274]
[1730816665411,7.471,165.11,165.01,18.63874274]
[1730816665809,2.1209,165.08,165.02,2.1216]
[1730816666316,7.471,165.11,164.98,18.63874274]
[1730816666317,2.1213,165.05,164.98,18.63874274]
[1730816666706,7.471,165.11,164.98,18.63874274]
[1730816666911,7.471,165.11,164.99,2.122]
[1730816667114,7.471,165.11,164.98,18.63874274]
[1730816667908,18.63874274,165.09,164.96,2.6558]
[1730816668104,18.63874274,165.09,164.95,18.63874274]
[1730816668614,2.1221,164.99,164.95,18.63874274]
[1730816668813,6.18,165.02,164.95,18.63874274]
[1730816669303,2.1219,165.01,164.95,20.76124274]
[1730816669507,6.18,165.02,164.95,18.63874274]
[1730816669917,2.1218,165.01,164.95,20.76114274]
[1730816670314,6.18,165.02,164.93,18.63874274]
[1730816671018,1.2759,165.01,164.9,18.63874274]
[1730816671415,1.2759,165.01,164.85,3.4598]
[1730816671416,2.1223,164.97,164.89,2.1233]
[1730816671622,19.91464274,165.01,164.9,18.63874274]
[1730816671623,1.2759,165.01,164.9,18.63874274]
[1730816671917,2.2759,165.01,164.9,18.63874274]
[1730816672121,2.2759,165.01,164.93,18.63874274]
[1730816672918,1.2759,165.01,164.93,18.63874274]
[1730816673319,6.18,165.02,164.93,18.63874274]
[1730816673522,6.18,165.02,164.94,1.3842]
[1730816673819,2.6752,165.05,164.95,18.63874274]
[1730816674421,2.6752,165.05,164.94,1.3842]
[1730816674811,2.6752,165.05,164.93,18.63874274]
[1730816675414,2.6752,165.05,164.93,20.76154274]
[1730816675415,2.1222,164.98,164.93,20.76154274]
[1730816675809,2.6752,165.05,164.93,18.63874274]
[1730816676020,2.1219,165.01,164.95,2.1225]
[1730816676208,2.6752,165.05,164.93,18.63874274]
[1730816676408,2.1218,165.02,164.96,2.1223]
[1730816676607,2.6752,165.05,164.94,1.3514]
[1730816677017,2.1218,165.02,164.96,2.1224]
[1730816677520,2.6752,165.05,164.96,2.1224]
[1730816677722,2.6752,165.05,164.94,1.3514]
[1730816677909,6.18,165.04,164.95,18.63874274]
[1730816678218,6.18,165.04,164.96,1.307]
[1730816678820,2.1216,165.03,164.98,2.1221]
[1730816679118,6.18,165.04,164.96,1.307]
[1730816679618,6.18,165.04,164.97,2.1222]
[1730816679619,2.1218,165.02,164.97,2.1222]
[1730816679923,6.18,165.04,164.96,1.307]
[1730816680114,6.18,165.04,164.94,2.1226]
[1730816680115,2.1221,164.99,164.94,2.1226]
[1730816680316,2.5774,165.03,164.9,21.25774274]
[1730816680713,2.5774,165.03,164.92,2.1228]
[1730816680918,2.5774,165.03,164.9,19.94574274]
[1730816681319,14.22777426,165.03,164.93,11.65037426]
[1730816682728,2.1219,165.0,164.93,11.65037426]
[1730816682925,11.65037426,165.01,164.91,11.65037426]
[1730816683437,2.1223,164.98,164.93,2.1228]
[1730816683627,11.65037426,165.01,164.91,11.65037426]
[1730816684531,2.1222,164.98,164.92,2.1228]
[1730816684722,11.65037426,165.01,164.92,2.1228]
[1730816685226,11.65037426,165.01,164.86,0.796]
[1730816685227,11.65037426,164.96,164.86,11.65037426]
[1730816685427,17.53037426,164.96,164.86,11.65037426]
[1730816685632,5.88,164.96,164.88,11.65037426]
[1730816685836,1.28,164.98,164.88,11.65037426]
[1730816686129,5.88,164.97,164.88,11.65037426]
[1730816686334,2.1225,164.96,164.91,2.123]
[1730816687127,2.1225,164.96,164.92,2.1229]
[1730816687431,5.88,164.97,164.9,11.65037426]
[1730816688127,5.88,164.97,164.92,2.1228]
[1730816688533,2.1226,164.95,164.89,2.1232]
[1730816688734,2.1226,164.95,164.88,11.65037426]